[Event "LJ Slovak Open 2022"]
[Site "Liptovsky Jan"]
[Date "2022.06.25"]
[Round "4.13"]
[White "Macka, Oto"]
[Black "Smetana, Peter"]
[Result "1/2-1/2"]
[ECO "A57"]
[WhiteElo "2026"]
[BlackElo "1740"]
[Annotator "RC"]
[PlyCount "119"]
[EventDate "2022.06.23"]
[EventType "swiss"]
[EventCountry "SVK"]
[SourceTitle "playchess.com"]
[Source "ChessBase"]
[SourceQuality "1"]
[TimeControl "3600+30"]

1. d4 {[%emt 0:00:03]} Nf6 {[%emt 0:01:13]} 2. c4 {[%emt 0:00:03]} c5 {[%emt 0:00:55]} 3. d5 {[%emt 0:00:03]} b5 {[%emt 0:00:41]} 4. cxb5 {[%emt 0:00:09]} a6 {[%emt 0:00:52]} 5. b6 {[%emt 0:00:05]} Qxb6 {[%emt 0:00:53]} 6. Nc3 {[%emt 0:00:07]} d6 {[%emt 0:00:40]} 7. e4 {[%emt 0:00:24]} Nbd7 {[%emt 0:01:21]} 8. Nf3 {[%emt 0:00:58]} g6 {[%emt 0:02:25]} 9. Nd2 {[%emt 0:09:26]} Bg7 {[%emt 0:02:15]} 10. Nc4 {[%emt 0:00:25]} Qc7 {[%emt 0:05:48]} 11. a4 {[%emt 0:01:46]} O-O {[%emt 0:00:42]} 12. h3 {[%emt 0:00:13]} Nb6 {[%emt 0:01:57]} 13. Na3 {[%emt 0:01:43]} Ne8 {[%emt 0:03:25]} 14. a5 {[%emt 0:02:34]} Nd7 {[%emt 0:02:10]} 15. Nc4 {[%emt 0:00:03]} Rb8 {[%emt 0:01:15]} 16. Bg5 {[%emt 0:03:39]} Ne5 {[%emt 0:01:49]} 17. Nb6 {[%emt 0:00:32]} Nf6 {[%emt 0:05:10]} 18. f4 {[%emt 0:05:40]} Ned7 {[%emt 0:01:36]} 19. Nc4 {[%emt 0:01:11]} Re8 {[%emt 0:02:28]} 20. Bd3 {[%emt 0:02:13]} h6 {[%emt 0:01:22]} 21. Bh4 {[%emt 0:00:09]} Nh7 {[%emt 0:05:56]} 22. O-O {[%emt 0:02:04]} Bb7 {[%emt 0:05:13]} 23. Bg3 {[%emt 0:06:23]} e5 {[%emt 0:05:16]} 24. f5 {[%emt 0:00:45]} Ndf6 {[%emt 0:01:10]} 25. Rb1 {[%emt 0:02:08]} Bc8 {[%emt 0:01:12]} 26. Qc2 {[%emt 0:01:44]} gxf5 {[%emt 0:07:19]} 27. exf5 {[%emt 0:03:02]} Bb7 {[%emt 0:01:37]} 28. Nb6 {[%emt 0:01:33]} Nf8 {[%emt 0:02:13]} 29. Be4 {[%emt 0:01:02]} N8d7 {[%emt 0:00:29]} 30. Nc4 {[%emt 0:00:27]} Nxe4 {[%emt 0:00:53]} 31. Nxe4 {[%emt 0:01:08]} Bxd5 {[%emt 0:02:28]} 32. Ncxd6 {[%emt 0:00:47]} Red8 {[%emt 0:01:14]} 33. f6 {[%emt 0:02:10]} Bf8 {[%emt 0:00:21]} 34. Nc4 {[%emt 0:00:53]} Bxc4 {[%emt 0:00:36]} 35. Qxc4 {[%emt 0:00:05]} Qxa5 {[%emt 0:00:21]} 36. Qe2 {[%emt 0:00:56]} Qb4 {[%emt 0:00:39]} 37. Qg4+ {[%emt 0:00:24]} Kh8 {[%emt 0:00:10]} 38. Qf5 {[%emt 0:00:28]} Qd4+ {[%emt 0:00:48]} 39. Bf2 {[%emt 0:00:35]} Qa4 {[%emt 0:02:10]} 40. Be3 {[%emt 0:01:18]} Qc6 {[%emt 0:00:29]} 41. Rf3 {[%emt 0:01:19]} Rb4 {[%emt 0:00:38]} 42. Nf2 {[%emt 0:02:18]} Qe6 {[%emt 0:00:48]} 43. Ng4 {[%emt 0:01:14]} Qxf5 {[%emt 0:00:30]} 44. Rxf5 {[%emt 0:00:02]} Kh7 {[%emt 0:00:19]} 45. Nxe5 {[%emt 0:02:15]} Nxe5 {[%emt 0:00:25]} 46. Rxe5 {[%emt 0:00:01]} Kg6 {[%emt 0:00:11]} 47. Bxc5 {[%emt 0:02:57]} Bxc5+ {[%emt 0:00:35]} 48. Rxc5 {[%emt 0:00:05]} Rdb8 {[%emt 0:00:07]} 49. Rc6 {[%emt 0:00:32]} a5 {[%emt 0:00:39]} 50. Ra1 {[%emt 0:00:18]} R8b6 {[%emt 0:00:49]} 51. Rxb6 {[%emt 0:00:15]} Rxb6 {[%emt 0:00:04]} 52. Rxa5 {[%emt 0:00:05]} Rxb2 {[%emt 0:00:03]} 53. Ra6 {[%emt 0:00:13]} Rc2 {[%emt 0:00:16]} 54. Kh2 {[%emt 0:00:19]} Rf2 {[%emt 0:00:10]} 55. Kg3 {[%emt 0:00:14]} Rxf6 {[%emt 0:00:04]} 56. Rxf6+ {[%emt 0:00:03]} Kxf6 {[%emt 0:00:04]} 57. Kf4 {[%emt 0:00:06]} Kg6 {[%emt 0:00:50]} 58. g4 {[%emt 0:00:12]} h5 {[%emt 0:00:08]} 59. g5 {[%emt 0:00:22]} f6 {[%emt 0:00:05]} 60. gxf6 {[%emt 0:00:06]} 1/2-1/2

[Event "LJ Slovak Open 2022"]
[Site "Liptovsky Jan"]
[Date "2022.06.25"]
[Round "4.14"]
[White "Verba, Vladimir"]
[Black "Chlpek, Daniel"]
[Result "1-0"]
[ECO "B23"]
[WhiteElo "1786"]
[BlackElo "2030"]
[Annotator "RC"]
[PlyCount "47"]
[EventDate "2022.06.23"]
[EventType "swiss"]
[EventCountry "SVK"]
[SourceTitle "playchess.com"]
[Source "ChessBase"]
[SourceQuality "1"]
[TimeControl "3600+30"]

1. e4 {[%emt 0:00:17]} c5 {[%emt 0:00:09]} 2. Nc3 {[%emt 0:00:35]} e6 {[%emt 0:00:07]} 3. g3 {[%emt 0:00:44]} d5 {[%emt 0:00:05]} 4. exd5 {[%emt 0:00:51]} exd5 {[%emt 0:00:04]} 5. Bg2 {[%emt 0:00:35]} Nf6 {[%emt 0:00:18]} 6. d3 {[%emt 0:00:09]} Be7 {[%emt 0:01:54]} 7. Nge2 {[%emt 0:02:04]} d4 {[%emt 0:05:54]} 8. Ne4 {[%emt 0:00:32]} Nxe4 {[%emt 0:00:06]} 9. dxe4 {[%emt 0:00:09]} O-O {[%emt 0:00:12]} 10. O-O {[%emt 0:00:09]} Nc6 {[%emt 0:00:02]} 11. Nf4 {[%emt 0:00:55]} b6 {[%emt 0:07:37]} 12. Re1 {[%emt 0:03:34]} Bb7 {[%emt 0:00:09]} 13. Nd5 {[%emt 0:01:16]} Re8 {[%emt 0:00:11]} 14. c3 {[%emt 0:06:17]} dxc3 {[%emt 0:05:33]} 15. bxc3 {[%emt 0:00:47]} c4 {[%emt 0:06:32]} 16. Bf4 {[%emt 0:10:28]} Rc8 {[%emt 0:01:13]} 17. Bh3 {[%emt 0:06:15]} Bc5 {[%emt 0:03:33]} 18. Bxc8 {[%emt 0:04:39]} Qxc8 {[%emt 0:00:10]} 19. Qh5 {[%emt 0:03:07]} Ne7 {[%emt 0:02:17]} 20. Rad1 {[%emt 0:05:02]} Ng6 {[%emt 0:04:44]} 21. Be3 {[%emt 0:07:58]} Bxe3 {[%emt 0:04:33]} 22. Rxe3 {[%emt 0:01:02]} Ne5 {[%emt 0:01:06]} 23. Qg5 {[%emt 0:05:06]} h6 {[%emt 0:03:22]} 24. Ne7+ {[%emt 0:01:02]} 1-0

[Event "LJ Slovak Open 2022"]
[Site "Liptovsky Jan"]
[Date "2022.06.25"]
[Round "4.15"]
[White "Mirowska, Oliwia"]
[Black "Ambrozi, Peter"]
[Result "1-0"]
[ECO "A43"]
[WhiteElo "1746"]
[BlackElo "1994"]
[Annotator "RC"]
[PlyCount "61"]
[EventDate "2022.06.23"]
[EventType "swiss"]
[EventCountry "SVK"]
[SourceTitle "playchess.com"]
[Source "ChessBase"]
[SourceQuality "1"]
[TimeControl "3600+30"]

1. d4 {[%emt 0:01:25]} c5 {[%emt 0:00:42]} 2. d5 {[%emt 0:00:13]} Nf6 {[%emt 0:00:08]} 3. Nc3 {[%emt 0:00:56]} g6 {[%emt 0:00:12]} 4. e4 {[%emt 0:00:09]} d6 {[%emt 0:00:20]} 5. Be2 {[%emt 0:00:39]} Bg7 {[%emt 0:00:35]} 6. Be3 {[%emt 0:00:30]} O-O {[%emt 0:01:14]} 7. f4 {[%emt 0:02:10]} e6 {[%emt 0:03:18]} 8. dxe6 {[%emt 0:05:08]} Bxe6 {[%emt 0:01:15]} 9. Qd2 {[%emt 0:04:30]} Qb6 {[%emt 0:06:19]} 10. Rb1 {[%emt 0:04:26]} Rd8 {[%emt 0:02:03]} 11. Bf3 {[%emt 0:02:39]} Nc6 {[%emt 0:03:04]} 12. Nge2 {[%emt 0:03:45]} a6 {[%emt 0:03:54]} 13. h3 {[%emt 0:01:00]} Qc7 {[%emt 0:00:42]} 14. Nd5 {[%emt 0:04:42]} Bxd5 {[%emt 0:00:20]} 15. exd5 {[%emt 0:00:42]} Ne7 {[%emt 0:00:48]} 16. g4 {[%emt 0:00:57]} Re8 {[%emt 0:00:21]} 17. O-O {[%emt 0:01:10]} Nfxd5 {[%emt 0:02:40]} 18. Bf2 {[%emt 0:01:13]} Nb4 {[%emt 0:00:27]} 19. c3 {[%emt 0:00:40]} Nbc6 {[%emt 0:00:13]} 20. Ng3 {[%emt 0:01:37]} Rad8 {[%emt 0:03:16]} 21. Bg2 {[%emt 0:02:35]} f5 {[%emt 0:03:46]} 22. gxf5 {[%emt 0:01:08]} Nxf5 {[%emt 0:00:38]} 23. Nxf5 {[%emt 0:01:04]} gxf5 {[%emt 0:00:09]} 24. Bh4 {[%emt 0:00:41]} Ne7 {[%emt 0:06:49]} 25. Bd5+ {[%emt 0:07:16]} Kh8 {[%emt 0:00:31]} 26. Rbe1 {[%emt 0:00:30]} Nxd5 {[%emt 0:03:54]} 27. Bxd8 {[%emt 0:00:30]} Qxd8 {[%emt 0:01:16]} 28. Rxe8+ {[%emt 0:00:27]} Qxe8 {[%emt 0:00:06]} 29. Qxd5 {[%emt 0:00:30]} Qe3+ {[%emt 0:00:35]} 30. Kg2 {[%emt 0:00:36]} Bh6 {[%emt 0:04:00]} 31. Qxf5 {[%emt 0:01:10]} 1-0

[Event "LJ Slovak Open 2022"]
[Site "Liptovsky Jan"]
[Date "2022.06.25"]
[Round "4.16"]
[White "Bakalar, Jan"]
[Black "Volek, Jan"]
[Result "1/2-1/2"]
[ECO "D74"]
[WhiteElo "1916"]
[BlackElo "1687"]
[Annotator "RC"]
[PlyCount "99"]
[EventDate "2022.06.23"]
[EventType "swiss"]
[EventCountry "SVK"]
[SourceTitle "playchess.com"]
[Source "ChessBase"]
[SourceQuality "1"]
[TimeControl "3600+30"]

1. c4 {[%emt 0:01:56]} g6 {[%emt 0:00:15]} 2. Nf3 {[%emt 0:01:40]} Bg7 {[%emt 0:00:16]} 3. Nc3 {[%emt 0:00:13]} Nf6 {[%emt 0:00:14]} 4. g3 {[%emt 0:00:22]} c6 {[%emt 0:00:17]} 5. Bg2 {[%emt 0:00:51]} O-O {[%emt 0:00:24]} 6. O-O {[%emt 0:01:40]} d5 {[%emt 0:00:36]} 7. cxd5 {[%emt 0:07:15]} Nxd5 {[%emt 0:00:30]} 8. d4 {[%emt 0:04:21]} Nxc3 {[%emt 0:00:36]} 9. bxc3 {[%emt 0:00:01]} Nd7 {[%emt 0:00:38]} 10. e4 {[%emt 0:01:12]} c5 {[%emt 0:00:56]} 11. e5 {[%emt 0:01:28]} cxd4 {[%emt 0:00:48]} 12. cxd4 {[%emt 0:00:02]} Nb6 {[%emt 0:00:46]} 13. Be3 {[%emt 0:07:10]} Nd5 {[%emt 0:00:48]} 14. Bd2 {[%emt 0:03:03]} b6 {[%emt 0:01:09]} 15. Qb3 {[%emt 0:01:32]} Bb7 {[%emt 0:01:30]} 16. a4 {[%emt 0:01:56]} Rc8 {[%emt 0:01:11]} 17. a5 {[%emt 0:07:44]} Ba6 {[%emt 0:01:31]} 18. Rfc1 {[%emt 0:00:45]} Rxc1+ {[%emt 0:00:57]} 19. Rxc1 {[%emt 0:00:15]} e6 {[%emt 0:01:53]} 20. axb6 {[%emt 0:02:10]} Qxb6 {[%emt 0:02:44]} 21. Qa3 {[%emt 0:02:08]} Be2 {[%emt 0:05:18]} 22. Ba5 {[%emt 0:01:25]} Qb7 {[%emt 0:00:30]} 23. Nd2 {[%emt 0:01:15]} Rc8 {[%emt 0:02:34]} 24. Bxd5 {[%emt 0:02:44]} Rxc1+ {[%emt 0:01:44]} 25. Qxc1 {[%emt 0:00:01]} exd5 {[%emt 0:00:55]} 26. Qb1 {[%emt 0:01:48]} Qxb1+ {[%emt 0:00:39]} 27. Nxb1 {[%emt 0:00:01]} Bg4 {[%emt 0:03:34]} 28. Nc3 {[%emt 0:01:29]} f6 {[%emt 0:01:19]} 29. f4 {[%emt 0:00:40]} fxe5 {[%emt 0:00:36]} 30. dxe5 {[%emt 0:02:30]} Be6 {[%emt 0:01:52]} 31. Bb4 {[%emt 0:01:54]} Bf8 {[%emt 0:00:15]} 32. Bxf8 {[%emt 0:02:17]} Kxf8 {[%emt 0:00:11]} 33. Kf2 {[%emt 0:00:30]} Ke7 {[%emt 0:01:14]} 34. Ke3 {[%emt 0:00:06]} Kd7 {[%emt 0:00:21]} 35. Kd4 {[%emt 0:00:46]} Kc6 {[%emt 0:00:56]} 36. Na4 {[%emt 0:01:29]} h5 {[%emt 0:01:26]} 37. Nc5 {[%emt 0:00:22]} Bc8 {[%emt 0:01:04]} 38. Nb3 {[%emt 0:02:36]} Be6 {[%emt 0:00:54]} 39. Kc3 {[%emt 0:00:18]} Bg4 {[%emt 0:01:41]} 40. Kb4 {[%emt 0:00:19]} Kb6 {[%emt 0:03:06]} 41. Kc3 {[%emt 0:03:04]} a5 {[%emt 0:02:20]} 42. Kd4 {[%emt 0:00:56]} a4 {[%emt 0:01:28]} 43. Nc5 {[%emt 0:03:08]} a3 {[%emt 0:04:38]} 44. Na4+ {[%emt 0:00:06]} Kb5 {[%emt 0:01:07]} 45. Nc3+ {[%emt 0:00:28]} Kb4 {[%emt 0:03:53]} 46. Nxd5+ {[%emt 0:04:59]} Kb3 {[%emt 0:01:34]} 47. Nc3 {[%emt 0:00:05]} Be6 {[%emt 0:01:22]} 48. Kd3 {[%emt 0:00:13]} Bc4+ {[%emt 0:06:24]} 49. Kd4 {[%emt 0:00:37]} Be6 {[%emt 0:01:04]} 50. Kd3 {[%emt 0:00:18]} 1/2-1/2

[Event "LJ Slovak Open 2022"]
[Site "Liptovsky Jan"]
[Date "2022.06.25"]
[Round "4.17"]
[White "Spik, Peter"]
[Black "Staron, Ladislav"]
[Result "1-0"]
[ECO "A41"]
[WhiteElo "1969"]
[BlackElo "1695"]
[Annotator "RC"]
[PlyCount "39"]
[EventDate "2022.06.23"]
[EventType "swiss"]
[EventCountry "SVK"]
[SourceTitle "playchess.com"]
[Source "ChessBase"]
[SourceQuality "1"]
[TimeControl "3600+30"]

1. d4 {[%emt 0:09:19]} d6 {[%emt 0:00:06]} 2. Nf3 {[%emt 0:00:16]} d5 {[%emt 0:00:30]} 3. c4 {[%emt 0:00:21]} Nf6 {[%emt 0:00:06]} 4. cxd5 {[%emt 0:00:05]} c6 {[%emt 0:00:09]} 5. Bf4 {[%emt 0:00:00]} cxd5 {[%emt 0:03:32]} 6. e3 {[%emt 0:00:22]} Nc6 {[%emt 0:00:30]} 7. Nc3 {[%emt 0:00:30]} Bg4 {[%emt 0:00:30]} 8. Be2 {[%emt 0:00:30]} e6 {[%emt 0:00:30]} 9. O-O {[%emt 0:00:30]} Bd6 {[%emt 0:00:30]} 10. h3 {[%emt 0:00:30]} Bxf3 {[%emt 0:00:30]} 11. Bxf3 {[%emt 0:00:00]} Bxf4 {[%emt 0:01:52]} 12. exf4 {[%emt 0:00:59]} O-O {[%emt 0:03:49]} 13. Qd2 {[%emt 0:00:30]} a6 {[%emt 0:00:30]} 14. Rad1 {[%emt 0:00:10]} Qb6 {[%emt 0:00:30]} 15. Rfe1 {[%emt 0:00:23]} Rac8 {[%emt 0:02:18]} 16. f5 {[%emt 0:00:06]} Rfe8 {[%emt 0:01:39]} 17. fxe6 {[%emt 0:00:30]} Na7 {[%emt 0:04:23]} 18. Bg4 {[%emt 0:23:53]} h6 {[%emt 0:29:05]} 19. Bh5 {[%emt 0:07:37]} fxe6 {[%emt 0:08:40]} 20. h4 {[%emt 0:04:12]} 1-0

[Event "LJ Slovak Open 2022"]
[Site "Liptovsky Jan"]
[Date "2022.06.25"]
[Round "4.18"]
[White "Kolesar, Peter"]
[Black "Saravanan Durga"]
[Result "0-1"]
[ECO "B86"]
[WhiteElo "1969"]
[BlackElo "1660"]
[Annotator "RC"]
[PlyCount "76"]
[EventDate "2022.06.23"]
[EventType "swiss"]
[EventCountry "SVK"]
[SourceTitle "playchess.com"]
[Source "ChessBase"]
[SourceQuality "1"]
[TimeControl "3600+30"]

1. e4 {[%emt 0:03:40]} c5 {[%emt 0:00:07]} 2. Nf3 {[%emt 0:00:22]} d6 {[%emt 0:00:18]} 3. d4 {[%emt 0:00:35]} cxd4 {[%emt 0:00:05]} 4. Nxd4 {[%emt 0:00:00]} Nf6 {[%emt 0:00:04]} 5. Nc3 {[%emt 0:00:00]} a6 {[%emt 0:00:03]} 6. Bg5 {[%emt 0:01:36]} Nbd7 {[%emt 0:00:07]} 7. Bc4 {[%emt 0:00:51]} e6 {[%emt 0:00:32]} 8. Bb3 {[%emt 0:00:40]} Nc5 {[%emt 0:00:52]} 9. O-O {[%emt 0:01:07]} Be7 {[%emt 0:05:02]} 10. f3 {[%emt 0:01:17]} Nfxe4 {[%emt 0:12:55]} 11. Bxe7 {[%emt 0:36:49]} Nxc3 {[%emt 0:00:15]} 12. Bxd8 {[%emt 0:03:16]} Nxd1 {[%emt 0:00:04]} 13. Bc7 {[%emt 0:03:55]} Nxb2 {[%emt 0:01:54]} 14. Bxd6 {[%emt 0:00:28]} Nba4 {[%emt 0:00:42]} 15. Rad1 {[%emt 0:02:17]} Bd7 {[%emt 0:25:27]} 16. Rfe1 {[%emt 0:00:23]} O-O-O {[%emt 0:00:33]} 17. Re5 {[%emt 0:02:14]} b6 {[%emt 0:03:33]} 18. Ne2 {[%emt 0:05:19]} Bc6 {[%emt 0:03:18]} 19. Rd4 {[%emt 0:00:41]} Kb7 {[%emt 0:03:11]} 20. Be7 {[%emt 0:02:45]} Rxd4 {[%emt 0:00:31]} 21. Nxd4 {[%emt 0:00:01]} Nxb3 {[%emt 0:03:18]} 22. axb3 {[%emt 0:01:31]} Nc3 {[%emt 0:00:15]} 23. Kf2 {[%emt 0:01:12]} Bd5 {[%emt 0:03:33]} 24. Bb4 {[%emt 0:00:45]} Rc8 {[%emt 0:01:24]} 25. Ke1 {[%emt 0:00:36]} b5 {[%emt 0:01:41]} 26. Kd2 {[%emt 0:00:13]} Na2 {[%emt 0:00:14]} 27. Re3 {[%emt 0:00:20]} Kb6 {[%emt 0:01:42]} 28. g3 {[%emt 0:00:15]} g6 {[%emt 0:01:21]} 29. f4 {[%emt 0:00:29]} h5 {[%emt 0:00:06]} 30. Ne2 {[%emt 0:00:57]} Rd8 {[%emt 0:00:49]} 31. Nd4 {[%emt 0:00:36]} Bc6 {[%emt 0:00:51]} 32. Re5 {[%emt 0:00:17]} Rd5 {[%emt 0:00:48]} 33. Re1 {[%emt 0:00:19]} e5 {[%emt 0:00:46]} 34. Ke3 {[%emt 0:00:58]} exf4+ {[%emt 0:00:09]} 35. Kxf4 {[%emt 0:00:39]} Rf5+ {[%emt 0:00:35]} 36. Ke3 {[%emt 0:00:19]} Rd5 {[%emt 0:00:00]} 37. Kd3 {[%emt 0:00:00]} Rc5 {[%emt 0:01:16]} 38. Rf1 {[%emt 0:00:37]} g5 {[%emt 0:00:00]} 0-1

[Event "LJ Slovak Open 2022"]
[Site "Liptovsky Jan"]
[Date "2022.06.25"]
[Round "4.19"]
[White "Gajdosik, Marian"]
[Black "Krestian, Darius"]
[Result "0-1"]
[ECO "B10"]
[WhiteElo "1902"]
[BlackElo "1659"]
[Annotator "RC"]
[PlyCount "94"]
[EventDate "2022.06.23"]
[EventType "swiss"]
[EventCountry "SVK"]
[SourceTitle "playchess.com"]
[Source "ChessBase"]
[SourceQuality "1"]
[TimeControl "3600+30"]

1. e4 {[%emt 0:00:21]} c6 {[%emt 0:00:10]} 2. d3 {[%emt 0:00:42]} d5 {[%emt 0:00:36]} 3. Nd2 {[%emt 0:00:05]} dxe4 {[%emt 0:00:38]} 4. dxe4 {[%emt 0:00:06]} g6 {[%emt 0:03:21]} 5. Ngf3 {[%emt 0:02:32]} Bg7 {[%emt 0:00:44]} 6. Bc4 {[%emt 0:01:09]} Nf6 {[%emt 0:01:37]} 7. O-O {[%emt 0:00:13]} O-O {[%emt 0:00:30]} 8. Qe2 {[%emt 0:01:27]} Nbd7 {[%emt 0:01:39]} 9. Rd1 {[%emt 0:03:35]} Qc7 {[%emt 0:01:21]} 10. Nf1 {[%emt 0:02:06]} Ne5 {[%emt 0:01:30]} 11. Nxe5 {[%emt 0:01:17]} Qxe5 {[%emt 0:00:14]} 12. f3 {[%emt 0:00:16]} Nh5 {[%emt 0:06:01]} 13. g3 {[%emt 0:01:03]} Be6 {[%emt 0:07:50]} 14. Bxe6 {[%emt 0:00:31]} Qxe6 {[%emt 0:00:52]} 15. c3 {[%emt 0:00:07]} f5 {[%emt 0:01:48]} 16. Kg2 {[%emt 0:00:18]} f4 {[%emt 0:04:49]} 17. g4 {[%emt 0:00:22]} Nf6 {[%emt 0:00:38]} 18. h3 {[%emt 0:03:00]} g5 {[%emt 0:10:43]} 19. Bd2 {[%emt 0:00:41]} h5 {[%emt 0:02:05]} 20. Nh2 {[%emt 0:00:08]} hxg4 {[%emt 0:03:53]} 21. hxg4 {[%emt 0:00:12]} Kf7 {[%emt 0:00:33]} 22. b3 {[%emt 0:02:01]} b5 {[%emt 0:04:43]} 23. Rac1 {[%emt 0:00:59]} Rh8 {[%emt 0:03:45]} 24. c4 {[%emt 0:02:16]} Nd7 {[%emt 0:01:29]} 25. cxb5 {[%emt 0:00:42]} Qh6 {[%emt 0:00:21]} 26. Kg1 {[%emt 0:01:11]} Bd4+ {[%emt 0:00:48]} 27. Kh1 {[%emt 0:00:36]} Ne5 {[%emt 0:01:06]} 28. Rf1 {[%emt 0:01:20]} c5 {[%emt 0:06:03]} 29. Bc3 {[%emt 0:00:31]} Nd3 {[%emt 0:01:54]} 30. Rc2 {[%emt 0:00:53]} Bxc3 {[%emt 0:01:27]} 31. Rxc3 {[%emt 0:01:02]} Rad8 {[%emt 0:00:34]} 32. Kg1 {[%emt 0:04:32]} Rh7 {[%emt 0:01:18]} 33. Rc2 {[%emt 0:00:33]} Qb6 {[%emt 0:01:04]} 34. Kg2 {[%emt 0:00:53]} Nb4 {[%emt 0:00:41]} 35. Rd2 {[%emt 0:00:44]} Rdh8 {[%emt 0:00:14]} 36. Qc4+ {[%emt 0:00:19]} Kg7 {[%emt 0:00:48]} 37. Kg1 {[%emt 0:01:08]} Rh3 {[%emt 0:00:32]} 38. Rff2 {[%emt 0:00:54]} Qf6 {[%emt 0:00:04]} 39. Qxc5 {[%emt 0:03:53]} Rg3+ {[%emt 0:00:31]} 40. Rg2 {[%emt 0:00:54]} Qa1+ {[%emt 0:00:53]} 41. Nf1 {[%emt 0:00:40]} Rh1+ {[%emt 0:00:35]} 42. Kxh1 {[%emt 0:00:10]} Qxf1+ {[%emt 0:00:02]} 43. Kh2 {[%emt 0:00:16]} Nd3 {[%emt 0:00:54]} 44. Qd4+ {[%emt 0:00:21]} Kg6 {[%emt 0:00:40]} 45. Qxd3 {[%emt 0:00:08]} Qe1 {[%emt 0:00:30]} 46. Qe2 {[%emt 0:00:32]} Rh3+ {[%emt 0:00:11]} 47. Kxh3 {[%emt 0:00:40]} Qh4# {[%emt 0:00:02]} 0-1

[Event "LJ Slovak Open 2022"]
[Site "Liptovsky Jan"]
[Date "2022.06.25"]
[Round "4.20"]
[White "Zeman, Jan"]
[Black "Rucek, Peter"]
[Result "1/2-1/2"]
[ECO "C00"]
[WhiteElo "1726"]
[BlackElo "1899"]
[Annotator "NA RC"]
[PlyCount "122"]
[EventDate "2022.06.23"]
[EventType "swiss"]
[EventCountry "SVK"]
[SourceTitle "playchess.com"]
[Source "ChessBase"]
[SourceQuality "1"]
[TimeControl "3600+30"]

1. e4 {[%emt 0:05:54]} e6 {[%emt 0:00:04]} 2. f4 {[%emt 0:00:14]} d5 {[%emt 0:00:05]} 3. e5 {[%emt 0:00:18]} c5 {[%emt 0:00:33]} 4. Nf3 {[%emt 0:01:52]} Nc6 {[%emt 0:00:30]} 5. Bb5 {[%emt 0:00:30]} Qb6 {[%emt 0:00:20]} 6. Nc3 {[%emt 0:01:42]} d4 {[%emt 0:04:00]} 7. Bxc6+ {[%emt 0:00:21]} Qxc6 {[%emt 0:01:14]} 8. Ne2 {[%emt 0:00:20]} Be7 {[%emt 0:00:58]} 9. d3 {[%emt 0:00:25]} Nh6 {[%emt 0:00:37]} 10. Ng3 {[%emt 0:00:42]} b6 {[%emt 0:00:33]} 11. O-O {[%emt 0:00:22]} Bb7 {[%emt 0:01:27]} 12. f5 {[%emt 0:02:02]} Nxf5 {[%emt 0:01:14]} 13. Nxf5 {[%emt 0:00:24]} exf5 {[%emt 0:00:08]} 14. Ne1 {[%emt 0:01:10]} Qe6 {[%emt 0:07:08]} 15. Nf3 {[%emt 0:02:05]} h6 {[%emt 0:01:13]} 16. Re1 {[%emt 0:00:46]} g5 {[%emt 0:01:46]} 17. h3 {[%emt 0:00:36]} O-O-O {[%emt 0:07:51]} 18. c3 {[%emt 0:00:41]} dxc3 {[%emt 0:00:22]} 19. bxc3 {[%emt 0:00:07]} g4 {[%emt 0:01:13]} 20. hxg4 {[%emt 0:00:03]} fxg4 {[%emt 0:00:10]} 21. Nh2 {[%emt 0:00:21]} h5 {[%emt 0:01:01]} 22. d4 {[%emt 0:01:16]} Qd5 {[%emt 0:06:43]} 23. Qc2 {[%emt 0:01:25]} Kb8 {[%emt 0:09:35]} 24. Bf4 {[%emt 0:01:19]} Ka8 {[%emt 0:01:12]} 25. Be3 {[%emt 0:00:55]} c4 {[%emt 0:04:57]} 26. a4 {[%emt 0:01:07]} h4 {[%emt 0:00:42]} 27. Re2 {[%emt 0:05:19]} h3 {[%emt 0:00:51]} 28. Bf4 {[%emt 0:02:38]} Rdg8 {[%emt 0:02:41]} 29. Nf1 {[%emt 0:01:51]} hxg2 {[%emt 0:01:43]} 30. Rxg2 {[%emt 0:00:11]} Qxg2+ {[%emt 0:02:53]} 31. Qxg2 {[%emt 0:00:03]} Bxg2 {[%emt 0:00:09]} 32. Kxg2 {[%emt 0:00:48]} Bg5 {[%emt 0:00:44]} 33. Bg3 {[%emt 0:03:10]} Kb7 {[%emt 0:00:12]} 34. d5 {[%emt 0:01:22]} Rd8 {[%emt 0:03:26]} 35. Rd1 {[%emt 0:00:19]} b5 {[%emt 0:01:25]} 36. axb5 {[%emt 0:01:23]} Kb6 {[%emt 0:00:56]} (36... f5 $19 37. d6 f4) 37. Rd4 {[%emt 0:02:36]} Kxb5 {[%emt 0:01:36]} 38. Rxg4 {[%emt 0:01:38]} Bh6 {[%emt 0:01:13]} 39. d6 {[%emt 0:00:50]} a5 {[%emt 0:00:50]} 40. Rd4 {[%emt 0:02:39]} Rd7 {[%emt 0:00:29]} 41. Kf3 {[%emt 0:00:28]} Rg8 {[%emt 0:01:01]} 42. Bf4 {[%emt 0:00:55]} Bxf4 {[%emt 0:00:40]} 43. Kxf4 {[%emt 0:00:11]} a4 {[%emt 0:00:51]} 44. Ne3 {[%emt 0:00:27]} Rc8 {[%emt 0:02:14]} 45. Nc2 {[%emt 0:02:26]} Rc5 {[%emt 0:01:59]} 46. Na3+ {[%emt 0:03:52]} Kc6 {[%emt 0:00:01]} 47. Nxc4 {[%emt 0:05:17]} Rb5 {[%emt 0:00:35]} 48. Kf5 {[%emt 0:03:44]} Rc5 {[%emt 0:01:39]} 49. Kf6 {[%emt 0:00:25]} a3 {[%emt 0:00:19]} 50. Nxa3 {[%emt 0:02:30]} Rxc3 {[%emt 0:00:01]} 51. Rc4+ {[%emt 0:00:49]} Rxc4 {[%emt 0:00:01]} 52. Nxc4 {[%emt 0:00:01]} Ra7 {[%emt 0:00:25]} 53. Ne3 {[%emt 0:00:47]} Ra3 {[%emt 0:00:00]} 54. Ng4 {[%emt 0:01:37]} Ra4 {[%emt 0:01:04]} 55. Nh6 {[%emt 0:00:42]} Kd7 {[%emt 0:00:17]} 56. Nxf7 {[%emt 0:01:52]} Rf4+ {[%emt 0:00:14]} 57. Kg6 $11 {[%emt 0:07:54]} Ke6 {[%emt 0:00:01]} 58. Ng5+ {[%emt 0:01:45]} Kxe5 {[%emt 0:02:01]} 59. d7 {[%emt 0:00:27]} Rf6+ {[%emt 0:00:25]} 60. Kg7 {[%emt 0:00:43]} Rd6 {[%emt 0:00:02]} 61. Nf7+ {[%emt 0:00:40]} Ke6 {[%emt 0:00:01]} 1/2-1/2